[Event "*** Titled Tuesday Blitz"]
[Site "Chess.com"]
[Date "2019.11.05"]
[Round "5"]
[White "wonderfultime"]
[Black "KhalilMousavi77"]
[Result "0-1"]
[WhiteElo "2956"]
[BlackElo "2908"]
[TimeControl "180+2"]
[EndTime "14:10:28 PST"]
[Termination "KhalilMousavi77 won by resignation"]

1. d4 {[%clk 0:02:58.7]} 1... d5 {[%clk 0:02:59.7]} 2. Nf3 {[%clk 0:02:59.8]}
2... Nf6 {[%clk 0:03:00.4]} 3. Bf4 {[%clk 0:03:01.1]} 3... c5 {[%clk 0:02:59.8]}
4. c3 {[%clk 0:03:02.2]} 4... Nc6 {[%clk 0:02:59.8]} 5. e3 {[%clk 0:03:03.5]}
5... Qb6 {[%clk 0:02:59.3]} 6. Qc2 {[%clk 0:03:04.5]} 6... g6 {[%clk 0:02:55.1]}
7. Nbd2 {[%clk 0:03:05.6]} 7... Bg7 {[%clk 0:02:53.1]} 8. Be2 {[%clk 0:03:01.8]}
8... O-O {[%clk 0:02:51.4]} 9. O-O {[%clk 0:03:02.5]} 9... Nh5 {[%clk
0:02:49.5]} 10. Be5 {[%clk 0:02:53.6]} 10... Bf5 {[%clk 0:02:43.9]} 11. Qb3
{[%clk 0:02:45.3]} 11... c4 {[%clk 0:02:36.5]} 12. Qxb6 {[%clk 0:02:32.5]} 12...
axb6 {[%clk 0:02:38.4]} 13. Bxg7 {[%clk 0:02:34.4]} 13... Nxg7 {[%clk
0:02:25.3]} 14. h3 {[%clk 0:02:22.8]} 14... b5 {[%clk 0:02:18.6]} 15. a3 {[%clk
0:02:24]} 15... f6 {[%clk 0:02:16.8]} 16. g4 {[%clk 0:02:18.5]} 16... Bd7 {[%clk
0:02:14.5]} 17. e4 {[%clk 0:02:19.2]} 17... dxe4 {[%clk 0:01:41.8]} 18. Nxe4
{[%clk 0:02:19.8]} 18... Ne6 {[%clk 0:01:43.7]} 19. Rfe1 {[%clk 0:01:58.1]}
19... Nf4 {[%clk 0:01:42.8]} 20. Bf1 {[%clk 0:01:59.4]} 20... Be6 {[%clk
0:01:32.4]} 21. Kh2 {[%clk 0:01:39.7]} 21... Bd5 {[%clk 0:01:30.8]} 22. Kg3
{[%clk 0:01:41.3]} 22... g5 {[%clk 0:01:29.1]} 23. Re3 {[%clk 0:01:36]} 23... h5
{[%clk 0:01:12.5]} 24. Rae1 {[%clk 0:01:30]} 24... b6 {[%clk 0:01:06.3]} 25.
gxh5 {[%clk 0:01:06.6]} 25... Nxh5+ {[%clk 0:01:05.2]} 26. Kh2 {[%clk
0:01:08.1]} 26... Rf7 {[%clk 0:01:02.1]} 27. Ng3 {[%clk 0:00:49.2]} 27... Nf4
{[%clk 0:01:01.5]} 28. Nf5 {[%clk 0:00:50.4]} 28... Kf8 {[%clk 0:00:56.5]} 29.
Nd2 {[%clk 0:00:22.1]} 29... Rd8 {[%clk 0:00:54.9]} 30. Ng3 {[%clk 0:00:21.3]}
30... Rh7 {[%clk 0:00:54.1]} 31. Nge4 {[%clk 0:00:22.5]} 31... Rd7 {[%clk
0:00:47.5]} 32. a4 {[%clk 0:00:23.8]} 32... bxa4 {[%clk 0:00:44.9]} 33. Bxc4
{[%clk 0:00:23.9]} 33... Bxc4 {[%clk 0:00:41.9]} 34. Nxc4 {[%clk 0:00:25.8]}
34... b5 {[%clk 0:00:43.7]} 35. Nc5 {[%clk 0:00:24.6]} 35... Rd8 {[%clk
0:00:39.4]} 36. Nb6 {[%clk 0:00:23.6]} 36... Kf7 {[%clk 0:00:34.2]} 37. Nbd7
{[%clk 0:00:11.5]} 37... Rdh8 {[%clk 0:00:29.7]} 38. Kg1 {[%clk 0:00:12.9]}
38... Nxh3+ {[%clk 0:00:29]} 39. Kg2 {[%clk 0:00:14.4]} 39... Nf4+ {[%clk
0:00:30.1]} 40. Kf3 {[%clk 0:00:15.9]} 40... Rh3+ {[%clk 0:00:29.4]} 41. Ke4
{[%clk 0:00:17.2]} 41... e6 {[%clk 0:00:27.6]} 42. Rxh3 {[%clk 0:00:10.3]} 42...
Rxh3 {[%clk 0:00:29.5]} 43. f3 {[%clk 0:00:11.8]} 43... f5+ {[%clk 0:00:30.6]}
44. Ke3 {[%clk 0:00:12.6]} 44... Ng2+ {[%clk 0:00:32.2]} 45. Kf2 {[%clk
0:00:14.1]} 45... Nxe1 {[%clk 0:00:33.5]} 46. Kxe1 {[%clk 0:00:15.1]} 46... Rxf3
{[%clk 0:00:30.5]} 47. Nb7 {[%clk 0:00:15.7]} 47... g4 {[%clk 0:00:29.7]} 48.
Ke2 {[%clk 0:00:14.5]} 48... Rh3 {[%clk 0:00:28.2]} 49. Ndc5 {[%clk 0:00:14.4]}
49... Rh2+ {[%clk 0:00:29]} 50. Ke3 {[%clk 0:00:15.3]} 50... Rxb2 {[%clk
0:00:29.4]} 51. c4 {[%clk 0:00:14.9]} 51... a3 {[%clk 0:00:27.6]} 52. cxb5
{[%clk 0:00:16.4]} 52... a2 {[%clk 0:00:28]} 53. bxc6 {[%clk 0:00:11]} 53...
a1=Q {[%clk 0:00:28.7]} 54. Kf4 {[%clk 0:00:12.9]} 54... Qc1+ {[%clk 0:00:28.9]}
55. Ke5 {[%clk 0:00:13.8]} 55... Qe3+ {[%clk 0:00:30]} 56. Kd6 {[%clk
0:00:15.3]} 56... Qxd4+ {[%clk 0:00:28.8]} 57. Kc7 {[%clk 0:00:16.8]} 57... g3
{[%clk 0:00:26.4]} 58. Nd6+ {[%clk 0:00:13.7]} 58... Qxd6+ {[%clk 0:00:20.8]}
59. Kxd6 {[%clk 0:00:15.6]} 59... Rb6 {[%clk 0:00:20.6]} 60. Nd7 {[%clk
0:00:14.9]} 60... g2 {[%clk 0:00:12.8]} 61. Nxb6 {[%clk 0:00:11.5]} 61... g1=Q
{[%clk 0:00:13.8]} 62. Nd7 {[%clk 0:00:10.7]} 62... Qd4+ {[%clk 0:00:14.7]} 63.
Kc7 {[%clk 0:00:12]} 63... Ke7 {[%clk 0:00:16.1]} 64. Nb6 {[%clk 0:00:11.5]}
64... Qd6+ {[%clk 0:00:14.8]} 65. Kb7 {[%clk 0:00:12.8]} 65... Kd8 {[%clk
0:00:16.1]} 66. Na8 {[%clk 0:00:14.1]} 66... Qb4+ {[%clk 0:00:15.9]} 67. Nb6
{[%clk 0:00:15.5]} 67... Qe4 {[%clk 0:00:14.9]} 68. Nd7 {[%clk 0:00:14.6]} 68...
f4 {[%clk 0:00:15.3]} 69. Nf6 {[%clk 0:00:10]} 69... Qb4+ {[%clk 0:00:15]} 0-1

[Event "*** Titled Tuesday Blitz"]
[Site "Chess.com"]
[Date "2019.11.05"]
[Round "5"]
[White "platy3"]
[Black "vinniethepooh"]
[Result "1/2-1/2"]
[WhiteElo "2899"]
[BlackElo "2698"]
[TimeControl "180+2"]
[EndTime "14:12:26 PST"]
[Termination "Game drawn by 50-move rule"]

1. e4 {[%clk 0:03:01.6]} 1... c5 {[%clk 0:03:01.4]} 2. Nf3 {[%clk 0:03:02.3]}
2... d6 {[%clk 0:03:02.9]} 3. d4 {[%clk 0:03:03.2]} 3... cxd4 {[%clk 0:03:04.5]}
4. Nxd4 {[%clk 0:03:04.8]} 4... Nf6 {[%clk 0:03:06]} 5. Nc3 {[%clk 0:03:06.4]}
5... a6 {[%clk 0:03:07.9]} 6. a4 {[%clk 0:03:07.8]} 6... e5 {[%clk 0:03:08.2]}
7. Nf3 {[%clk 0:03:08.9]} 7... Be7 {[%clk 0:03:09.5]} 8. Bc4 {[%clk 0:03:09.9]}
8... O-O {[%clk 0:03:10.9]} 9. O-O {[%clk 0:03:11]} 9... Be6 {[%clk 0:03:12.1]}
10. Qe2 {[%clk 0:03:12.1]} 10... Qc8 {[%clk 0:03:02.2]} 11. Bb3 {[%clk
0:03:11.9]} 11... Nbd7 {[%clk 0:02:55.3]} 12. Bg5 {[%clk 0:03:10.5]} 12... h6
{[%clk 0:02:40.9]} 13. Bh4 {[%clk 0:03:11.2]} 13... Nc5 {[%clk 0:02:35.4]} 14.
Bxf6 {[%clk 0:02:39.7]} 14... Bxf6 {[%clk 0:02:37.3]} 15. Bd5 {[%clk 0:02:40.7]}
15... Be7 {[%clk 0:02:23.2]} 16. Qc4 {[%clk 0:02:40.2]} 16... a5 {[%clk
0:01:44.5]} 17. Ne1 {[%clk 0:02:27]} 17... Na6 {[%clk 0:01:35.9]} 18. Qb5 {[%clk
0:02:15.8]} 18... Nb4 {[%clk 0:01:22.5]} 19. Rd1 {[%clk 0:01:50.7]} 19... Qc7
{[%clk 0:00:53.7]} 20. Qe2 {[%clk 0:01:45.3]} 20... Rac8 {[%clk 0:00:49.6]} 21.
Bxe6 {[%clk 0:01:40.5]} 21... fxe6 {[%clk 0:00:47.5]} 22. Nb5 {[%clk 0:01:38.1]}
22... Qc4 {[%clk 0:00:42.4]} 23. Qxc4 {[%clk 0:01:26.5]} 23... Rxc4 {[%clk
0:00:44.3]} 24. Nxd6 {[%clk 0:01:27.9]} 24... Bxd6 {[%clk 0:00:41.3]} 25. Rxd6
{[%clk 0:01:29.8]} 25... Nxc2 {[%clk 0:00:29.1]} 26. Nxc2 {[%clk 0:01:24.8]}
26... Rxc2 {[%clk 0:00:31]} 27. Rxe6 {[%clk 0:01:26.2]} 27... Rxb2 {[%clk
0:00:32.7]} 28. Rxe5 {[%clk 0:01:27.1]} 28... b6 {[%clk 0:00:34.3]} 29. g3
{[%clk 0:01:24.2]} 29... Rb4 {[%clk 0:00:29.3]} 30. Re1 {[%clk 0:01:21.2]} 30...
Rxa4 {[%clk 0:00:27.7]} 31. Rb5 {[%clk 0:01:22.6]} 31... Re8 {[%clk 0:00:23.7]}
32. e5 {[%clk 0:01:22.8]} 32... Rd4 {[%clk 0:00:07.1]} 33. Rxb6 {[%clk
0:01:21.3]} 33... a4 {[%clk 0:00:09]} 34. Ra6 {[%clk 0:01:21.8]} 34... Kh7
{[%clk 0:00:06]} 35. Re2 {[%clk 0:01:16.7]} 35... g5 {[%clk 0:00:07.3]} 36. Rc2
{[%clk 0:01:09.8]} 36... Re7 {[%clk 0:00:05.9]} 37. Re2 {[%clk 0:01:07.2]} 37...
g4 {[%clk 0:00:05.2]} 38. h3 {[%clk 0:01:06.3]} 38... h5 {[%clk 0:00:05.8]} 39.
hxg4 {[%clk 0:01:07.3]} 39... hxg4 {[%clk 0:00:07.7]} 40. Kg2 {[%clk 0:01:09]}
40... Kg7 {[%clk 0:00:07.4]} 41. Re3 {[%clk 0:00:59.7]} 41... Kf7 {[%clk
0:00:07]} 42. Re1 {[%clk 0:00:57.3]} 42... Re6 {[%clk 0:00:06.3]} 43. Ra5 {[%clk
0:00:53.4]} 43... Kg6 {[%clk 0:00:06.1]} 44. Rc1 {[%clk 0:00:45]} 44... Kf5
{[%clk 0:00:05.5]} 45. Rc8 {[%clk 0:00:43.8]} 45... Re4 {[%clk 0:00:03.1]} 46.
Rcc5 {[%clk 0:00:33]} 46... R6xe5 {[%clk 0:00:04.1]} 47. Rxe5+ {[%clk
0:00:33.6]} 47... Rxe5 {[%clk 0:00:06]} 48. Rxa4 {[%clk 0:00:35.2]} 48... Rb5
{[%clk 0:00:07.2]} 49. Rf4+ {[%clk 0:00:35.3]} 49... Kg5 {[%clk 0:00:08.3]} 50.
Rf8 {[%clk 0:00:36.7]} 50... Re5 {[%clk 0:00:08.8]} 51. Kf1 {[%clk 0:00:37.5]}
51... Re7 {[%clk 0:00:09.2]} 52. Rd8 {[%clk 0:00:37.1]} 52... Re5 {[%clk
0:00:09.9]} 53. Rd2 {[%clk 0:00:37.5]} 53... Kf5 {[%clk 0:00:08.4]} 54. Rd4
{[%clk 0:00:38.3]} 54... Kg5 {[%clk 0:00:08.5]} 55. Rd8 {[%clk 0:00:33.3]} 55...
Kf5 {[%clk 0:00:08.9]} 56. Rg8 {[%clk 0:00:34]} 56... Re7 {[%clk 0:00:06.4]} 57.
Rh8 {[%clk 0:00:30.1]} 57... Kg5 {[%clk 0:00:07]} 58. Ra8 {[%clk 0:00:30.1]}
58... Re5 {[%clk 0:00:07.6]} 59. Ra2 {[%clk 0:00:29.3]} 59... Kf5 {[%clk
0:00:07.6]} 60. Re2 {[%clk 0:00:30.9]} 60... Rb5 {[%clk 0:00:07.9]} 61. Ke1
{[%clk 0:00:29.9]} 61... Rb1+ {[%clk 0:00:07.9]} 62. Kd2 {[%clk 0:00:31.3]}
62... Rb2+ {[%clk 0:00:09]} 63. Ke3 {[%clk 0:00:31.6]} 63... Rb4 {[%clk
0:00:08.3]} 64. Rd2 {[%clk 0:00:30.5]} 64... Re4+ {[%clk 0:00:09.2]} 65. Kd3
{[%clk 0:00:31.8]} 65... Ra4 {[%clk 0:00:11.1]} 66. Rc2 {[%clk 0:00:31.1]} 66...
Ra3+ {[%clk 0:00:10.6]} 67. Rc3 {[%clk 0:00:30.5]} 67... Ra4 {[%clk 0:00:09.3]}
68. Rc5+ {[%clk 0:00:30.3]} 68... Kg6 {[%clk 0:00:06.6]} 69. Ke3 {[%clk
0:00:31.7]} 69... Ra3+ {[%clk 0:00:04.5]} 70. Ke2 {[%clk 0:00:31.1]} 70... Ra2+
{[%clk 0:00:05]} 71. Ke1 {[%clk 0:00:32.6]} 71... Ra1+ {[%clk 0:00:05.5]} 72.
Kd2 {[%clk 0:00:34.2]} 72... Ra2+ {[%clk 0:00:05.5]} 73. Rc2 {[%clk 0:00:35.8]}
73... Ra3 {[%clk 0:00:05.7]} 74. Rc3 {[%clk 0:00:37.2]} 74... Ra2+ {[%clk
0:00:06.5]} 75. Ke3 {[%clk 0:00:38.4]} 75... Kf5 {[%clk 0:00:04.9]} 76. Rb3
{[%clk 0:00:38.9]} 76... Kg6 {[%clk 0:00:03.8]} 77. Rb5 {[%clk 0:00:39.5]} 77...
Kf6 {[%clk 0:00:03.8]} 78. Rd5 {[%clk 0:00:39.7]} 78... Kg6 {[%clk 0:00:02.6]}
79. Rd2 {[%clk 0:00:41.3]} 79... Ra4 {[%clk 0:00:03.9]} 80. Rd4 {[%clk
0:00:41.7]} 80... Ra3+ {[%clk 0:00:05.2]} 81. Rd3 {[%clk 0:00:38.7]} 81... Ra4
{[%clk 0:00:06.3]} 82. Rd5 {[%clk 0:00:34.8]} 82... Ra3+ {[%clk 0:00:05.5]} 83.
Rd3 {[%clk 0:00:30.5]} 83... Ra4 {[%clk 0:00:06.7]} 84. Rc3 {[%clk 0:00:32.2]}
84... Kf5 {[%clk 0:00:06.9]} 85. Rb3 {[%clk 0:00:33]} 85... Kg5 {[%clk
0:00:07.3]} 86. Rb2 {[%clk 0:00:23.3]} 86... Kf5 {[%clk 0:00:07.4]} 87. Rd2
{[%clk 0:00:22.7]} 87... Ra3+ {[%clk 0:00:05.4]} 88. Rd3 {[%clk 0:00:23.7]}
88... Ra4 {[%clk 0:00:06.8]} 89. Rd5+ {[%clk 0:00:14.4]} 89... Kg6 {[%clk
0:00:07.9]} 90. Re5 {[%clk 0:00:07.2]} 90... Ra3+ {[%clk 0:00:06.5]} 91. Ke4
{[%clk 0:00:07.4]} 91... Ra4+ {[%clk 0:00:06.6]} 92. Kd3 {[%clk 0:00:07.3]}
92... Ra3+ {[%clk 0:00:07.2]} 93. Kd2 {[%clk 0:00:08]} 93... Ra2+ {[%clk
0:00:08]} 94. Ke1 {[%clk 0:00:08.9]} 94... Ra1+ {[%clk 0:00:09.4]} 95. Ke2
{[%clk 0:00:10]} 95... Ra2+ {[%clk 0:00:11.3]} 96. Kf1 {[%clk 0:00:11.2]} 96...
Kf6 {[%clk 0:00:11.7]} 97. Re2 {[%clk 0:00:11.9]} 97... Ra1+ {[%clk 0:00:12.4]}
98. Re1 {[%clk 0:00:13.5]} 1/2-1/2

[Event "*** Titled Tuesday Blitz"]
[Site "Chess.com"]
[Date "2019.11.05"]
[Round "6"]
[White "IMRosen"]
[Black "tteshan"]
[Result "1-0"]
[WhiteElo "2601"]
[BlackElo "2308"]
[TimeControl "180+2"]
[EndTime "14:16:16 PST"]
[Termination "IMRosen won by resignation"]

1. d4 {[%clk 0:03:01.9]} 1... d5 {[%clk 0:03:01.2]} 2. Bf4 {[%clk 0:03:02.9]}
2... Nf6 {[%clk 0:03:01.7]} 3. e3 {[%clk 0:03:04.2]} 3... c5 {[%clk 0:03:02.2]}
4. Nf3 {[%clk 0:03:05]} 4... Nc6 {[%clk 0:03:01.6]} 5. Nbd2 {[%clk 0:03:06.7]}
5... e6 {[%clk 0:03:02.2]} 6. c3 {[%clk 0:03:07.5]} 6... Bd6 {[%clk 0:03:03.4]}
7. Bg3 {[%clk 0:03:09.1]} 7... Ne7 {[%clk 0:02:59.6]} 8. Bb5+ {[%clk 0:03:03]}
8... Nc6 {[%clk 0:02:55.5]} 9. Qa4 {[%clk 0:02:51]} 9... Bxg3 {[%clk 0:02:50.6]}
10. Bxc6+ {[%clk 0:02:31.7]} 10... bxc6 {[%clk 0:02:51.5]} 11. hxg3 {[%clk
0:02:30.9]} 11... Qd6 {[%clk 0:02:50.4]} 12. Qa3 {[%clk 0:02:26.2]} 12... Nd7
{[%clk 0:02:44.3]} 13. Nb3 {[%clk 0:02:26.7]} 13... Rb8 {[%clk 0:02:20.8]} 14.
dxc5 {[%clk 0:02:16.2]} 14... Qc7 {[%clk 0:02:19.4]} 15. Qa4 {[%clk 0:02:12.7]}
15... Rb5 {[%clk 0:01:46.8]} 16. Nfd4 {[%clk 0:02:07.3]} 16... Ra5 {[%clk
0:01:46.1]} 17. Qxa5 {[%clk 0:02:02.5]} 1-0

[Event "*** Titled Tuesday Blitz"]
[Site "Chess.com"]
[Date "2019.11.05"]
[Round "6"]
[White "Bigfish1995"]
[Black "WeAintSurePal"]
[Result "1-0"]
[WhiteElo "3013"]
[BlackElo "2478"]
[TimeControl "180+2"]
[EndTime "14:16:44 PST"]
[Termination "Bigfish1995 won by resignation"]

1. d4 {[%clk 0:03:01.9]} 1... Nf6 {[%clk 0:02:50.8]} 2. c4 {[%clk 0:03:03.1]}
2... e6 {[%clk 0:02:51.8]} 3. Nc3 {[%clk 0:03:04.4]} 3... d5 {[%clk 0:02:53.3]}
4. Bg5 {[%clk 0:03:04]} 4... Nbd7 {[%clk 0:02:53.1]} 5. e3 {[%clk 0:03:01.8]}
5... c6 {[%clk 0:02:54.2]} 6. h4 {[%clk 0:03:02.2]} 6... Bd6 {[%clk 0:02:47.2]}
7. Nf3 {[%clk 0:02:59.6]} 7... h6 {[%clk 0:02:47.4]} 8. Bf4 {[%clk 0:03:01]}
8... Bxf4 {[%clk 0:02:47.4]} 9. exf4 {[%clk 0:03:02.5]} 9... O-O {[%clk
0:02:45.1]} 10. g3 {[%clk 0:03:02]} 10... b6 {[%clk 0:02:44.6]} 11. cxd5 {[%clk
0:02:59.6]} 11... cxd5 {[%clk 0:02:43.4]} 12. Bd3 {[%clk 0:02:59.6]} 12... Bb7
{[%clk 0:02:43.6]} 13. Qe2 {[%clk 0:03:01]} 13... a6 {[%clk 0:02:41.1]} 14. O-O
{[%clk 0:03:01.2]} 14... b5 {[%clk 0:02:42]} 15. a3 {[%clk 0:02:55.8]} 15... Rc8
{[%clk 0:02:42.4]} 16. Nd1 {[%clk 0:02:51.8]} 16... Nb6 {[%clk 0:02:40.2]} 17.
b3 {[%clk 0:02:52.3]} 17... Rc7 {[%clk 0:02:40.3]} 18. Ne5 {[%clk 0:02:46.3]}
18... Nc8 {[%clk 0:02:40.5]} 19. Ne3 {[%clk 0:02:42.6]} 19... Nd6 {[%clk
0:02:40.8]} 20. Rfc1 {[%clk 0:02:43.5]} 20... Nfe4 {[%clk 0:02:39]} 21. Qe1
{[%clk 0:02:43]} 21... Rxc1 {[%clk 0:02:29.6]} 22. Rxc1 {[%clk 0:02:43.7]} 22...
Qb6 {[%clk 0:02:09]} 23. Bxe4 {[%clk 0:02:41.5]} 23... Nxe4 {[%clk 0:02:03.7]}
24. Nd7 {[%clk 0:02:42.6]} 24... Qxd4 {[%clk 0:02:02.9]} 25. Nxf8 {[%clk
0:02:43.8]} 25... Kxf8 {[%clk 0:01:56]} 26. Rc7 {[%clk 0:02:43.1]} 26... Qb6
{[%clk 0:01:56]} 27. Qb4+ {[%clk 0:02:43.6]} 27... Kg8 {[%clk 0:01:56.5]} 28.
Qe7 {[%clk 0:02:44.5]} 28... Nd6 {[%clk 0:01:57.1]} 29. Rd7 {[%clk 0:02:45.3]}
29... d4 {[%clk 0:01:49.6]} 30. Rxd6 {[%clk 0:02:42.9]} 30... Qc5 {[%clk
0:01:50.3]} 31. Rd8+ {[%clk 0:02:43.9]} 1-0

[Event "*** Titled Tuesday Blitz"]
[Site "Chess.com"]
[Date "2019.11.05"]
[Round "6"]
[White "SiddharthGMJagadeesh"]
[Black "twitchTriniCupid"]
[Result "1-0"]
[WhiteElo "2592"]
[BlackElo "2430"]
[TimeControl "180+2"]
[EndTime "14:18:11 PST"]
[Termination "SiddharthGMJagadeesh won on time"]

1. Nf3 {[%clk 0:03:01.9]} 1... Nf6 {[%clk 0:02:54.8]} 2. b3 {[%clk 0:03:02.7]}
2... d5 {[%clk 0:02:55.5]} 3. Bb2 {[%clk 0:03:03.7]} 3... b6 {[%clk 0:02:56.1]}
4. g3 {[%clk 0:02:59.7]} 4... Bb7 {[%clk 0:02:56.8]} 5. Bg2 {[%clk 0:03:01.6]}
5... Nbd7 {[%clk 0:02:57.5]} 6. O-O {[%clk 0:03:02.3]} 6... e6 {[%clk
0:02:58.6]} 7. c4 {[%clk 0:03:03.2]} 7... c5 {[%clk 0:02:58.6]} 8. cxd5 {[%clk
0:03:03.6]} 8... Bxd5 {[%clk 0:02:58.5]} 9. Nc3 {[%clk 0:03:04]} 9... Bb7 {[%clk
0:02:59.1]} 10. d4 {[%clk 0:03:03.8]} 10... cxd4 {[%clk 0:02:59.5]} 11. Qxd4
{[%clk 0:03:00.6]} 11... Bc5 {[%clk 0:02:59.9]} 12. Qd2 {[%clk 0:03:00.1]} 12...
O-O {[%clk 0:03:00.9]} 13. Rad1 {[%clk 0:02:58.2]} 13... Qe7 {[%clk 0:03:01.6]}
14. Na4 {[%clk 0:02:39.4]} 14... Rfd8 {[%clk 0:02:48.9]} 15. Nxc5 {[%clk
0:02:39.2]} 15... Nxc5 {[%clk 0:02:48.9]} 16. Qf4 {[%clk 0:02:31.9]} 16... Nd5
{[%clk 0:02:48]} 17. Qg4 {[%clk 0:02:29.2]} 17... f5 {[%clk 0:02:49]} 18. Qh5
{[%clk 0:02:13.5]} 18... h6 {[%clk 0:02:47.7]} 19. Nh4 {[%clk 0:02:09.7]} 19...
Qf7 {[%clk 0:02:47.8]} 20. Qxf7+ {[%clk 0:02:03.4]} 20... Kxf7 {[%clk
0:02:48.5]} 21. Nf3 {[%clk 0:02:05.3]} 1-0

[Event "*** Titled Tuesday Blitz"]
[Site "Chess.com"]
[Date "2019.11.05"]
[Round "6"]
[White "Alextorngren"]
[Black "Vamostodorecto"]
[Result "0-1"]
[WhiteElo "2217"]
[BlackElo "2440"]
[TimeControl "180+2"]
[EndTime "14:18:20 PST"]
[Termination "Vamostodorecto won by resignation"]

1. Nf3 {[%clk 0:03:01.9]} 1... d5 {[%clk 0:02:58.8]} 2. b3 {[%clk 0:03:03.1]}
2... f6 {[%clk 0:02:58.3]} 3. c4 {[%clk 0:02:58.1]} 3... d4 {[%clk 0:02:57.8]}
4. e3 {[%clk 0:02:53.7]} 4... c5 {[%clk 0:02:57.7]} 5. Bb2 {[%clk 0:02:34.8]}
5... e5 {[%clk 0:02:57.2]} 6. exd4 {[%clk 0:02:30.6]} 6... cxd4 {[%clk
0:02:59.1]} 7. d3 {[%clk 0:02:25.8]} 7... Nc6 {[%clk 0:03:00.2]} 8. g3 {[%clk
0:02:24.1]} 8... Bg4 {[%clk 0:03:00.2]} 9. h3 {[%clk 0:02:24]} 9... Be6 {[%clk
0:02:59.5]} 10. Bg2 {[%clk 0:02:24.8]} 10... Qd7 {[%clk 0:03:00.9]} 11. Nbd2
{[%clk 0:02:24.8]} 11... Bd6 {[%clk 0:02:55.4]} 12. a3 {[%clk 0:02:24.2]} 12...
h6 {[%clk 0:02:52.3]} 13. b4 {[%clk 0:02:23.6]} 13... f5 {[%clk 0:02:48.9]} 14.
c5 {[%clk 0:02:20]} 14... Bc7 {[%clk 0:02:48.7]} 15. Nc4 {[%clk 0:02:13.6]}
15... e4 {[%clk 0:02:43.9]} 16. Nfd2 {[%clk 0:02:01.6]} 16... e3 {[%clk
0:02:35.9]} 17. Nf3 {[%clk 0:02:01.2]} 17... exf2+ {[%clk 0:02:30.1]} 18. Kxf2
{[%clk 0:02:02.1]} 18... a6 {[%clk 0:02:25.9]} 19. Re1 {[%clk 0:02:01.7]} 19...
Nf6 {[%clk 0:02:20.2]} 20. Qe2 {[%clk 0:01:46.8]} 20... Nh5 {[%clk 0:02:18.1]}
21. Qxe6+ {[%clk 0:01:45.7]} 21... Qxe6 {[%clk 0:02:16.3]} 22. Rxe6+ {[%clk
0:01:47.6]} 22... Kf7 {[%clk 0:02:16.5]} 23. Re2 {[%clk 0:01:18.5]} 23... Bxg3+
{[%clk 0:02:16.2]} 24. Kg1 {[%clk 0:01:15.4]} 24... Rhe8 {[%clk 0:02:12]} 25.
Rxe8 {[%clk 0:01:07]} 25... Rxe8 {[%clk 0:02:13.9]} 26. Nxd4 {[%clk 0:01:02.6]}
26... Nxd4 {[%clk 0:02:06.1]} 27. Bxd4 {[%clk 0:01:03.4]} 27... Re2 {[%clk
0:02:04.2]} 28. Bd5+ {[%clk 0:01:04.3]} 28... Kg6 {[%clk 0:02:03]} 29. Bf3
{[%clk 0:00:54.7]} 29... Bh2+ {[%clk 0:02:03.6]} 0-1

[Event "*** Titled Tuesday Blitz"]
[Site "Chess.com"]
[Date "2019.11.05"]
[Round "6"]
[White "StephenDedalus83"]
[Black "FearlessKing64"]
[Result "1-0"]
[WhiteElo "2797"]
[BlackElo "2325"]
[TimeControl "180+2"]
[EndTime "14:18:30 PST"]
[Termination "StephenDedalus83 won by resignation"]

1. e4 {[%clk 0:03:01.9]} 1... c5 {[%clk 0:02:59.5]} 2. Nf3 {[%clk 0:03:01.6]}
2... d6 {[%clk 0:03:00.4]} 3. d4 {[%clk 0:03:02.7]} 3... cxd4 {[%clk 0:03:02.3]}
4. Nxd4 {[%clk 0:03:04]} 4... Nf6 {[%clk 0:03:03.7]} 5. Nc3 {[%clk 0:03:05]}
5... a6 {[%clk 0:03:05.1]} 6. Bc4 {[%clk 0:03:03.9]} 6... e6 {[%clk 0:03:05.4]}
7. O-O {[%clk 0:03:04.4]} 7... b5 {[%clk 0:03:06.3]} 8. Bb3 {[%clk 0:03:04.3]}
8... b4 {[%clk 0:03:07.9]} 9. Na4 {[%clk 0:03:03.3]} 9... Bd7 {[%clk 0:03:09.4]}
10. c3 {[%clk 0:03:00.6]} 10... bxc3 {[%clk 0:03:07.7]} 11. Nxc3 {[%clk
0:03:00.8]} 11... Nc6 {[%clk 0:03:09.4]} 12. f4 {[%clk 0:02:59.3]} 12... Nxd4
{[%clk 0:02:50.3]} 13. Qxd4 {[%clk 0:02:59.3]} 13... Qc7 {[%clk 0:02:36.2]} 14.
Be3 {[%clk 0:02:59.3]} 14... Ng4 {[%clk 0:02:34.8]} 15. Rac1 {[%clk 0:02:59.7]}
15... Nxe3 {[%clk 0:02:34.4]} 16. Qxe3 {[%clk 0:03:00.3]} 16... Qa7 {[%clk
0:02:29.3]} 17. Qxa7 {[%clk 0:02:59.8]} 17... Rxa7 {[%clk 0:02:31.2]} 18. Ba4
{[%clk 0:02:55.2]} 18... Be7 {[%clk 0:02:25.4]} 19. Bxd7+ {[%clk 0:02:54.3]}
19... Kxd7 {[%clk 0:02:26.9]} 20. Na4 {[%clk 0:02:54.7]} 20... Rb8 {[%clk
0:02:15.9]} 21. b3 {[%clk 0:02:51.3]} 21... Rb4 {[%clk 0:02:02.8]} 22. Rfe1
{[%clk 0:02:51.8]} 22... Rc7 {[%clk 0:01:58.7]} 23. Rxc7+ {[%clk 0:02:51]} 23...
Kxc7 {[%clk 0:02:00.6]} 24. Kf2 {[%clk 0:02:51.1]} 24... d5 {[%clk 0:01:34.6]}
25. Kf3 {[%clk 0:02:44.2]} 25... dxe4+ {[%clk 0:01:28.1]} 26. Rxe4 {[%clk
0:02:46.1]} 26... Rxe4 {[%clk 0:01:28.6]} 27. Kxe4 {[%clk 0:02:48]} 27... Bb4
{[%clk 0:01:18.8]} 28. Nb2 {[%clk 0:02:48.2]} 28... Kd7 {[%clk 0:01:10.7]} 29.
Nd3 {[%clk 0:02:48.7]} 29... Bd6 {[%clk 0:01:06.7]} 30. b4 {[%clk 0:02:47.3]}
30... Kc6 {[%clk 0:01:05.6]} 31. a4 {[%clk 0:02:48.1]} 31... f6 {[%clk 0:01:00]}
32. Kd4 {[%clk 0:02:48]} 32... Bxf4 {[%clk 0:00:35.2]} 33. Nxf4 {[%clk 0:02:47]}
33... e5+ {[%clk 0:00:36.7]} 34. Ke4 {[%clk 0:02:48.1]} 34... exf4 {[%clk
0:00:38.6]} 35. Kxf4 {[%clk 0:02:49.6]} 35... Kd5 {[%clk 0:00:40.5]} 36. Kf5
{[%clk 0:02:50.6]} 36... Kc4 {[%clk 0:00:34.2]} 37. b5 {[%clk 0:02:50.9]} 37...
axb5 {[%clk 0:00:34.9]} 38. axb5 {[%clk 0:02:52.8]} 38... Kxb5 {[%clk
0:00:35.7]} 39. Ke6 {[%clk 0:02:54.3]} 39... Kc4 {[%clk 0:00:33.4]} 40. Kf7
{[%clk 0:02:55]} 40... Kd3 {[%clk 0:00:27.7]} 41. Kxg7 {[%clk 0:02:55.6]} 41...
Ke2 {[%clk 0:00:28.5]} 42. Kxh7 {[%clk 0:02:56.3]} 42... Kf2 {[%clk 0:00:30]}
43. Kg6 {[%clk 0:02:57.1]} 43... Kxg2 {[%clk 0:00:30.9]} 44. h4 {[%clk
0:02:58.3]} 1-0